[Event "January 9 Early 2024"]
[Site "https://www.chess.com"]
[Date "2024.01.11"]
[Round "6"]
[White "Estrada Nieto, Julian"]
[Black "Klukin, Kirill"]
[Result "0-1"]
[Board "55"]
[TimeControl "180+1"]
[WhiteFideId "5101018"]
[BlackFideId "24199273"]
[WhiteElo "2595"]
[BlackElo "2823"]
[WhiteTeam "ESP"]
[BlackTeam "RUS"]
[WhiteClock "0:00:51"]
[BlackClock "0:00:37"]

1. e4 {[%clk 0:03:00]}  d6 {[%clk 0:02:56]} 2. d4 {[%clk 0:03:00]}  f5 {[%clk 0:02:57]} 3. exf5 {[%clk 0:02:56]}  Bxf5 {[%clk 0:02:57]} 4. Nf3 {[%clk 0:02:56]}  Nf6 {[%clk 0:02:57]} 5. Bd3 {[%clk 0:02:56]}  Qd7 {[%clk 0:02:58]} 6. O-O {[%clk 0:02:55]}  Nc6 {[%clk 0:02:54]} 7. Re1 {[%clk 0:02:49]}  O-O-O {[%clk 0:02:50]} 8. c4 {[%clk 0:02:48]}  e5 {[%clk 0:02:39]} 9. dxe5 {[%clk 0:02:40]}  dxe5 {[%clk 0:02:38]} 10. Bxf5 {[%clk 0:02:39]}  Qxf5 {[%clk 0:02:39]} 11. Qa4 {[%clk 0:02:14]}  Bc5 {[%clk 0:02:33]} 12. Be3 {[%clk 0:02:10]}  Bxe3 {[%clk 0:02:18]} 13. fxe3 {[%clk 0:02:10]}  e4 {[%clk 0:02:18]} 14. Nd4 {[%clk 0:02:02]}  Nxd4 {[%clk 0:01:35]} 15. exd4 {[%clk 0:02:02]}  Ng4 {[%clk 0:01:35]} 16. Rf1 {[%clk 0:01:47]}  Qg5 {[%clk 0:01:35]} 17. Nc3 {[%clk 0:01:35]}  Qe3+ {[%clk 0:01:28]} 18. Kh1 {[%clk 0:01:35]}  Qxd4 {[%clk 0:01:16]} 19. Nb5 {[%clk 0:01:10]}  Nf2+ {[%clk 0:01:03]} 20. Rxf2 {[%clk 0:01:10]}  Qxf2 {[%clk 0:01:03]} 21. Nxa7+ {[%clk 0:01:09]}  Kb8 {[%clk 0:01:04]} 22. Nb5 {[%clk 0:01:08]}  Rhf8 {[%clk 0:00:52]} 23. h3 {[%clk 0:01:06]}  Rd2 {[%clk 0:00:52]} 24. Rg1 {[%clk 0:01:02]}  Rf3 {[%clk 0:00:41]} 25. Kh2 {[%clk 0:00:51]}  Qg3+ {[%clk 0:00:37]} 26. Kh1 {[%clk 0:00:51]}  Qxh3+ {[%clk 0:00:37]} 0-1

[Event "January 9 Early 2024"]
[Site "https://www.chess.com"]
[Date "2024.01.11"]
[Round "6"]
[White "Baches Garcia, Guillermo"]
[Black "Skibbe, Willi"]
[Result "1-0"]
[Board "57"]
[TimeControl "180+1"]
[WhiteFideId "2209764"]
[BlackFideId "4682190"]
[WhiteElo "2523"]
[BlackElo "2364"]
[WhiteTeam "ESP"]
[BlackTeam "GER"]
[WhiteClock "0:00:46"]
[BlackClock "0:00:37"]

1. d4 {[%clk 0:03:00]}  d5 {[%clk 0:02:59]} 2. Nf3 {[%clk 0:03:01]}  Nf6 {[%clk 0:02:58]} 3. Bg5 {[%clk 0:03:02]}  Ne4 {[%clk 0:02:56]} 4. Bh4 {[%clk 0:03:02]}  h5 {[%clk 0:02:55]} 5. h3 {[%clk 0:02:56]}  f6 {[%clk 0:02:53]} 6. Nfd2 {[%clk 0:02:55]}  g5 {[%clk 0:02:32]} 7. Nxe4 {[%clk 0:02:53]}  gxh4 {[%clk 0:02:31]} 8. Ned2 {[%clk 0:02:46]}  e5 {[%clk 0:02:31]} 9. Nf3 {[%clk 0:02:39]}  Nc6 {[%clk 0:02:26]} 10. e3 {[%clk 0:02:34]}  e4 {[%clk 0:02:25]} 11. Nxh4 {[%clk 0:02:32]}  f5 {[%clk 0:02:17]} 12. Ng6 {[%clk 0:02:18]}  Rh6 {[%clk 0:02:15]} 13. Nf4 {[%clk 0:02:09]}  h4 {[%clk 0:02:12]} 14. c4 {[%clk 0:02:04]}  Ne7 {[%clk 0:02:01]} 15. cxd5 {[%clk 0:01:59]}  Nxd5 {[%clk 0:02:01]} 16. Nxd5 {[%clk 0:01:57]}  Qxd5 {[%clk 0:02:02]} 17. Nc3 {[%clk 0:01:56]}  Qe6 {[%clk 0:01:55]} 18. Qa4+ {[%clk 0:01:40]}  c6 {[%clk 0:01:53]} 19. d5 {[%clk 0:01:34]}  Qe5 {[%clk 0:01:49]} 20. dxc6 {[%clk 0:01:26]}  bxc6 {[%clk 0:01:50]} 21. O-O-O {[%clk 0:01:22]}  Bc5 {[%clk 0:01:37]} 22. Ba6 {[%clk 0:01:12]}  Bd7 {[%clk 0:01:33]} 23. Rd2 {[%clk 0:01:03]}  Rb8 {[%clk 0:00:59]} 24. Rhd1 {[%clk 0:01:02]}  Rh7 {[%clk 0:00:59]} 25. Rxd7 {[%clk 0:00:53]}  Rxd7 {[%clk 0:00:57]} 26. Qxc6 {[%clk 0:00:53]}  Rd8 {[%clk 0:00:37]} 27. Rxd7 {[%clk 0:00:49]}  Rxd7 {[%clk 0:00:37]} 28. Bc8 {[%clk 0:00:46]} 1-0

[Event "January 9 Early 2024"]
[Site "https://www.chess.com"]
[Date "2024.01.11"]
[Round "6"]
[White "Sarkar, Justin"]
[Black "Wadsworth, Matthew J"]
[Result "0-1"]
[Board "59"]
[TimeControl "180+1"]
[WhiteFideId "2010011"]
[BlackFideId "415804"]
[WhiteElo "2306"]
[BlackElo "2641"]
[WhiteTeam "USA"]
[BlackTeam "ENG"]
[WhiteClock "0:00:02"]
[BlackClock "0:01:27"]

1. e4 {[%clk 0:02:58]}  e6 {[%clk 0:02:55]} 2. d4 {[%clk 0:02:57]}  d5 {[%clk 0:02:56]} 3. Nc3 {[%clk 0:02:57]}  Bb4 {[%clk 0:02:56]} 4. e5 {[%clk 0:02:56]}  c5 {[%clk 0:02:56]} 5. a3 {[%clk 0:02:55]}  Bxc3+ {[%clk 0:02:57]} 6. bxc3 {[%clk 0:02:55]}  Qa5 {[%clk 0:02:57]} 7. Bd2 {[%clk 0:02:54]}  Qa4 {[%clk 0:02:58]} 8. Qb1 {[%clk 0:02:53]}  c4 {[%clk 0:02:57]} 9. h4 {[%clk 0:02:52]}  Nc6 {[%clk 0:02:56]} 10. h5 {[%clk 0:02:49]}  h6 {[%clk 0:02:56]} 11. Rh4 {[%clk 0:02:45]}  Nge7 {[%clk 0:02:51]} 12. Rg4 {[%clk 0:02:43]}  Nf5 {[%clk 0:02:49]} 13. Ne2 {[%clk 0:02:40]}  Bd7 {[%clk 0:02:27]} 14. Ng3 {[%clk 0:02:29]}  Nce7 {[%clk 0:02:27]} 15. Qxb7 {[%clk 0:02:18]}  Bc6 {[%clk 0:02:27]} 16. Qb2 {[%clk 0:02:02]}  Kd7 {[%clk 0:02:24]} 17. Be2 {[%clk 0:01:58]}  Rab8 {[%clk 0:02:20]} 18. Qa2 {[%clk 0:01:37]}  Rb7 {[%clk 0:02:09]} 19. Bd1 {[%clk 0:01:35]}  Rhb8 {[%clk 0:02:07]} 20. Bc1 {[%clk 0:01:29]}  Qa5 {[%clk 0:01:57]} 21. Kd2 {[%clk 0:01:17]}  Nxg3 {[%clk 0:01:45]} 22. Rxg3 {[%clk 0:01:15]}  Nf5 {[%clk 0:01:45]} 23. Rg4 {[%clk 0:01:12]}  Ba4 {[%clk 0:01:45]} 24. Rf4 {[%clk 0:01:05]}  Ke8 {[%clk 0:01:32]} 25. g4 {[%clk 0:01:00]}  Ne7 {[%clk 0:01:31]} 26. Be2 {[%clk 0:00:33]}  Rb5 {[%clk 0:01:31]} 27. Bd1 {[%clk 0:00:29]}  R8b7 {[%clk 0:01:31]} 28. Be2 {[%clk 0:00:29]}  Qc7 {[%clk 0:01:31]} 29. Ke1 {[%clk 0:00:23]}  Qb8 {[%clk 0:01:31]} 30. Rf3 {[%clk 0:00:17]}  Rb2 {[%clk 0:01:28]} 31. Bxb2 {[%clk 0:00:13]}  Rxb2 {[%clk 0:01:29]} 32. Bxc4 {[%clk 0:00:02]}  Rxa2 {[%clk 0:01:27]} 0-1

[Event "January 9 Early 2024"]
[Site "https://www.chess.com"]
[Date "2024.01.11"]
[Round "6"]
[White "Mena, Martin"]
[Black "Skaric, Djuro"]
[Result "0-1"]
[Board "60"]
[TimeControl "180+1"]
[WhiteFideId "10651225"]
[BlackFideId "934569"]
[WhiteElo "2082"]
[BlackElo "2293"]
[WhiteTeam "EGY"]
[BlackTeam "SRB"]
[WhiteClock "0:00:01"]
[BlackClock "0:01:18"]

1. c4 {[%clk 0:03:00]}  d6 {[%clk 0:03:00]} 2. d4 {[%clk 0:02:57]}  g6 {[%clk 0:03:01]} 3. e4 {[%clk 0:02:56]}  Bg7 {[%clk 0:03:01]} 4. Nc3 {[%clk 0:02:55]}  Nf6 {[%clk 0:03:02]} 5. f4 {[%clk 0:02:53]}  O-O {[%clk 0:03:01]} 6. Nf3 {[%clk 0:02:51]}  c5 {[%clk 0:03:00]} 7. d5 {[%clk 0:02:43]}  e6 {[%clk 0:02:57]} 8. dxe6 {[%clk 0:02:41]}  fxe6 {[%clk 0:02:57]} 9. Bd3 {[%clk 0:02:35]}  Nc6 {[%clk 0:02:56]} 10. O-O {[%clk 0:02:32]}  Nd4 {[%clk 0:02:47]} 11. h3 {[%clk 0:01:56]}  Bd7 {[%clk 0:02:41]} 12. Be3 {[%clk 0:01:53]}  Nxf3+ {[%clk 0:02:35]} 13. Qxf3 {[%clk 0:01:52]}  b6 {[%clk 0:02:34]} 14. Rae1 {[%clk 0:01:39]}  Bc6 {[%clk 0:02:32]} 15. Qg3 {[%clk 0:01:15]}  Nh5 {[%clk 0:02:30]} 16. Qg4 {[%clk 0:01:14]}  Qc8 {[%clk 0:02:25]} 17. f5 {[%clk 0:01:00]}  Nf6 {[%clk 0:02:21]} 18. Qg5 {[%clk 0:00:54]}  Nd7 {[%clk 0:02:01]} 19. fxg6 {[%clk 0:00:23]}  h6 {[%clk 0:02:01]} 20. Qh4 {[%clk 0:00:15]}  Qd8 {[%clk 0:01:56]} 21. Rxf8+ {[%clk 0:00:12]}  Nxf8 {[%clk 0:01:52]} 22. Qg4 {[%clk 0:00:11]}  Qf6 {[%clk 0:01:43]} 23. Rf1 {[%clk 0:00:09]}  Qe5 {[%clk 0:01:37]} 24. Kh1 {[%clk 0:00:05]}  h5 {[%clk 0:01:28]} 25. Qg5 {[%clk 0:00:04]}  Qxg5 {[%clk 0:01:27]} 26. Bxg5 {[%clk 0:00:05]}  Nxg6 {[%clk 0:01:27]} 27. Be2 {[%clk 0:00:02]}  Ne5 {[%clk 0:01:21]} 28. Bxh5 {[%clk 0:00:01]}  Rf8 {[%clk 0:01:18]} 0-1

[Event "January 9 Early 2024"]
[Site "https://www.chess.com"]
[Date "2024.01.11"]
[Round "6"]
[White "Fiedorek, Michal"]
[Black "Vincenti, Leonardo"]
[Result "0-1"]
[Board "61"]
[TimeControl "180+1"]
[WhiteFideId "1199528"]
[BlackFideId "28550820"]
[WhiteElo "2472"]
[BlackElo "2221"]
[WhiteTeam "POL"]
[BlackTeam "ITA"]
[WhiteClock "0:01:19"]
[BlackClock "0:00:34"]

1. e4 {[%clk 0:03:00]}  e5 {[%clk 0:02:59]} 2. Nf3 {[%clk 0:03:01]}  Nf6 {[%clk 0:02:59]} 3. Nxe5 {[%clk 0:02:59]}  d6 {[%clk 0:02:57]} 4. Nf3 {[%clk 0:02:59]}  Nxe4 {[%clk 0:02:58]} 5. Nc3 {[%clk 0:03:00]}  Nxc3 {[%clk 0:02:56]} 6. dxc3 {[%clk 0:03:01]}  Be7 {[%clk 0:02:55]} 7. Be3 {[%clk 0:03:00]}  Bf6 {[%clk 0:02:54]} 8. Qd2 {[%clk 0:03:01]}  a5 {[%clk 0:02:54]} 9. O-O-O {[%clk 0:03:01]}  a4 {[%clk 0:02:55]} 10. a3 {[%clk 0:03:02]}  Qe7 {[%clk 0:02:55]} 11. h4 {[%clk 0:03:01]}  Qe6 {[%clk 0:02:54]} 12. Kb1 {[%clk 0:03:01]}  h6 {[%clk 0:02:52]} 13. Nd4 {[%clk 0:03:00]}  Qd5 {[%clk 0:02:49]} 14. Be2 {[%clk 0:02:50]}  Nc6 {[%clk 0:02:37]} 15. Bf3 {[%clk 0:02:50]}  Qc4 {[%clk 0:02:25]} 16. Nxc6 {[%clk 0:02:49]}  bxc6 {[%clk 0:02:25]} 17. Qd3 {[%clk 0:02:49]}  Qxd3 {[%clk 0:02:09]} 18. Bxc6+ {[%clk 0:02:49]}  Bd7 {[%clk 0:02:10]} 19. Bxd7+ {[%clk 0:02:49]}  Kxd7 {[%clk 0:02:11]} 20. cxd3 {[%clk 0:02:46]}  Rab8 {[%clk 0:02:08]} 21. Kc2 {[%clk 0:02:36]}  Rb3 {[%clk 0:02:08]} 22. Rb1 {[%clk 0:02:35]}  Rhb8 {[%clk 0:02:06]} 23. g4 {[%clk 0:02:35]}  d5 {[%clk 0:01:37]} 24. g5 {[%clk 0:02:33]}  hxg5 {[%clk 0:01:33]} 25. hxg5 {[%clk 0:02:34]}  Be5 {[%clk 0:01:30]} 26. f4 {[%clk 0:02:31]}  Bd6 {[%clk 0:01:30]} 27. f5 {[%clk 0:02:31]}  g6 {[%clk 0:01:17]} 28. fxg6 {[%clk 0:02:25]}  fxg6 {[%clk 0:01:18]} 29. Bd4 {[%clk 0:02:10]}  c5 {[%clk 0:01:13]} 30. Bf6 {[%clk 0:02:10]}  Re8 {[%clk 0:01:05]} 31. Rbe1 {[%clk 0:01:54]}  Reb8 {[%clk 0:01:03]} 32. Rh7+ {[%clk 0:01:51]}  Kc6 {[%clk 0:01:02]} 33. c4 {[%clk 0:01:52]}  d4 {[%clk 0:00:58]} 34. Rb1 {[%clk 0:01:51]}  Re8 {[%clk 0:00:57]} 35. Kd2 {[%clk 0:01:30]}  Bf4+ {[%clk 0:00:56]} 36. Kc2 {[%clk 0:01:26]}  Re2+ {[%clk 0:00:54]} 37. Kd1 {[%clk 0:01:26]}  Rd2+ {[%clk 0:00:50]} 38. Ke1 {[%clk 0:01:27]}  Rbxd3 {[%clk 0:00:41]} 39. Rg7 {[%clk 0:01:19]}  Rh3 {[%clk 0:00:34]} 0-1

[Event "January 9 Early 2024"]
[Site "https://www.chess.com"]
[Date "2024.01.11"]
[Round "6"]
[White "Zilleruelo Irizarry, Diego"]
[Black "Radibratovic, Predrag"]
[Result "1/2-1/2"]
[Board "62"]
[TimeControl "180+1"]
[WhiteFideId "3101460"]
[BlackFideId "902012"]
[WhiteElo "2342"]
[BlackElo "2511"]
[WhiteTeam "PUR"]
[BlackTeam "SRB"]
[WhiteClock "0:00:20"]
[BlackClock "0:01:18"]

1. e4 {[%clk 0:03:00]}  c6 {[%clk 0:02:59]} 2. d4 {[%clk 0:03:00]}  d5 {[%clk 0:03:00]} 3. exd5 {[%clk 0:03:01]}  cxd5 {[%clk 0:02:59]} 4. Bd3 {[%clk 0:03:02]}  Nc6 {[%clk 0:02:59]} 5. c3 {[%clk 0:03:02]}  g6 {[%clk 0:03:00]} 6. h3 {[%clk 0:03:02]}  Bf5 {[%clk 0:03:00]} 7. Nf3 {[%clk 0:03:02]}  Nf6 {[%clk 0:03:00]} 8. O-O {[%clk 0:03:02]}  Bg7 {[%clk 0:03:00]} 9. Re1 {[%clk 0:03:02]}  Bxd3 {[%clk 0:03:00]} 10. Qxd3 {[%clk 0:03:02]}  O-O {[%clk 0:03:01]} 11. Bf4 {[%clk 0:03:02]}  e6 {[%clk 0:03:01]} 12. Nbd2 {[%clk 0:03:02]}  Rc8 {[%clk 0:03:01]} 13. a4 {[%clk 0:03:00]}  b6 {[%clk 0:03:01]} 14. Ne5 {[%clk 0:02:57]}  Nxe5 {[%clk 0:03:00]} 15. Bxe5 {[%clk 0:02:57]}  Nd7 {[%clk 0:03:00]} 16. Bxg7 {[%clk 0:02:56]}  Kxg7 {[%clk 0:03:01]} 17. a5 {[%clk 0:02:57]}  Qc7 {[%clk 0:02:59]} 18. axb6 {[%clk 0:02:56]}  axb6 {[%clk 0:02:59]} 19. Qb5 {[%clk 0:02:52]}  Ra8 {[%clk 0:02:58]} 20. Kf1 {[%clk 0:02:49]}  h6 {[%clk 0:02:54]} 21. g3 {[%clk 0:02:43]}  Rfb8 {[%clk 0:02:52]} 22. h4 {[%clk 0:02:33]}  h5 {[%clk 0:02:51]} 23. Kg2 {[%clk 0:02:27]}  Qb7 {[%clk 0:02:49]} 24. Nf3 {[%clk 0:02:24]}  Qc7 {[%clk 0:02:47]} 25. Ng5 {[%clk 0:02:21]}  Qd6 {[%clk 0:02:43]} 26. f4 {[%clk 0:02:10]}  Nf6 {[%clk 0:02:40]} 27. Kf3 {[%clk 0:02:01]}  Ng4 {[%clk 0:02:36]} 28. Ra4 {[%clk 0:01:52]}  Rxa4 {[%clk 0:02:35]} 29. Qxa4 {[%clk 0:01:52]}  Nf6 {[%clk 0:02:17]} 30. Qa7 {[%clk 0:01:49]}  Nd7 {[%clk 0:02:17]} 31. Re5 {[%clk 0:01:07]}  Rf8 {[%clk 0:02:08]} 32. Re1 {[%clk 0:01:01]}  Rb8 {[%clk 0:02:08]} 33. Re5 {[%clk 0:01:00]}  Kf6 {[%clk 0:02:06]} 34. g4 {[%clk 0:00:40]}  hxg4+ {[%clk 0:02:06]} 35. Kxg4 {[%clk 0:00:41]}  Kg7 {[%clk 0:02:03]} 36. Re1 {[%clk 0:00:39]}  Rh8 {[%clk 0:01:54]} 37. Kg3 {[%clk 0:00:34]}  Kf6 {[%clk 0:01:36]} 38. Ra1 {[%clk 0:00:30]}  Kf5 {[%clk 0:01:28]} 39. Rf1 {[%clk 0:00:22]}  Kf6 {[%clk 0:01:24]} 40. Ra1 {[%clk 0:00:20]}  Kf5 {[%clk 0:01:18]} 41. Rf1 {[%clk 0:00:20]}  Kf6 {[%clk 0:01:18]} 42. Ra1 {[%clk 0:00:20]} 1/2-1/2

[Event "January 9 Early 2024"]
[Site "https://www.chess.com"]
[Date "2024.01.11"]
[Round "6"]
[White "Martinez Pla, Xavier"]
[Black "Winkels, Marcel"]
[Result "1-0"]
[Board "63"]
[TimeControl "180+1"]
[WhiteFideId "32074271"]
[BlackFideId "1003887"]
[WhiteElo "2463"]
[BlackElo "2019"]
[WhiteTeam "ESP"]
[BlackTeam "NED"]
[WhiteClock "0:01:18"]
[BlackClock "0:00:01"]

1. e4 {[%clk 0:02:59]}  d5 {[%clk 0:02:58]} 2. exd5 {[%clk 0:02:59]}  Qxd5 {[%clk 0:02:59]} 3. Nc3 {[%clk 0:03:00]}  Qd6 {[%clk 0:02:59]} 4. d4 {[%clk 0:03:00]}  Nf6 {[%clk 0:02:59]} 5. Nf3 {[%clk 0:02:58]}  c6 {[%clk 0:02:58]} 6. g3 {[%clk 0:02:58]}  Bg4 {[%clk 0:02:58]} 7. Bg2 {[%clk 0:02:58]}  Nbd7 {[%clk 0:02:55]} 8. a3 {[%clk 0:02:53]}  e5 {[%clk 0:02:19]} 9. dxe5 {[%clk 0:02:42]}  Nxe5 {[%clk 0:02:13]} 10. Qxd6 {[%clk 0:02:33]}  Bxd6 {[%clk 0:02:12]} 11. Nd4 {[%clk 0:02:30]}  O-O-O {[%clk 0:02:02]} 12. h3 {[%clk 0:02:26]}  Bh5 {[%clk 0:01:54]} 13. Nf5 {[%clk 0:02:26]}  Nf3+ {[%clk 0:01:44]} 14. Kf1 {[%clk 0:02:10]}  Rhe8 {[%clk 0:01:34]} 15. Be3 {[%clk 0:02:03]}  Ne5 {[%clk 0:00:43]} 16. Nxg7 {[%clk 0:01:57]}  Rg8 {[%clk 0:00:42]} 17. Nf5 {[%clk 0:01:40]}  Nc4 {[%clk 0:00:24]} 18. Bxa7 {[%clk 0:01:35]}  Bc7 {[%clk 0:00:16]} 19. Be3 {[%clk 0:01:31]}  Bg6 {[%clk 0:00:14]} 20. Ne7+ {[%clk 0:01:31]}  Kb8 {[%clk 0:00:12]} 21. Nxg8 {[%clk 0:01:32]}  Nxe3+ {[%clk 0:00:10]} 22. fxe3 {[%clk 0:01:33]}  Rxg8 {[%clk 0:00:10]} 23. g4 {[%clk 0:01:32]}  Re8 {[%clk 0:00:08]} 24. Kf2 {[%clk 0:01:31]}  Be5 {[%clk 0:00:06]} 25. Rhe1 {[%clk 0:01:30]}  Bxc2 {[%clk 0:00:06]} 26. Rac1 {[%clk 0:01:29]}  Bb3 {[%clk 0:00:06]} 27. Bf3 {[%clk 0:01:29]}  Be6 {[%clk 0:00:03]} 28. b4 {[%clk 0:01:27]}  h5 {[%clk 0:00:02]} 29. g5 {[%clk 0:01:22]}  Nd5 {[%clk 0:00:01]} 30. Nxd5 {[%clk 0:01:21]}  cxd5 {[%clk 0:00:01]} 31. Red1 {[%clk 0:01:20]}  Bxh3 {[%clk 0:00:01]} 32. Rxd5 {[%clk 0:01:19]}  Be6 {[%clk 0:00:01]} 33. Rxe5 {[%clk 0:01:18]} 1-0

[Event "January 9 Early 2024"]
[Site "https://www.chess.com"]
[Date "2024.01.11"]
[Round "6"]
[White "Donchenko, Alexander"]
[Black "Ranaldi, Lucas"]
[Result "0-1"]
[Board "64"]
[TimeControl "180+1"]
[WhiteFideId "24603295"]
[BlackFideId "1519484"]
[WhiteElo "2916"]
[BlackElo "2706"]
[WhiteTeam "GER"]
[BlackTeam "NOR"]
[WhiteClock "0:00:27"]
[BlackClock "0:00:51"]

1. Nf3 {[%clk 0:02:54]}  Nf6 {[%clk 0:02:59]} 2. g3 {[%clk 0:02:54]}  b6 {[%clk 0:03:00]} 3. Bg2 {[%clk 0:02:55]}  Bb7 {[%clk 0:03:01]} 4. O-O {[%clk 0:02:54]}  c5 {[%clk 0:03:01]} 5. d3 {[%clk 0:02:53]}  e6 {[%clk 0:02:57]} 6. e4 {[%clk 0:02:53]}  d6 {[%clk 0:02:57]} 7. Re1 {[%clk 0:02:51]}  Be7 {[%clk 0:02:57]} 8. c3 {[%clk 0:02:51]}  O-O {[%clk 0:02:50]} 9. Nbd2 {[%clk 0:02:52]}  b5 {[%clk 0:02:49]} 10. d4 {[%clk 0:02:50]}  Qb6 {[%clk 0:02:45]} 11. a4 {[%clk 0:02:46]}  a6 {[%clk 0:02:38]} 12. d5 {[%clk 0:02:33]}  exd5 {[%clk 0:02:33]} 13. exd5 {[%clk 0:02:34]}  Re8 {[%clk 0:02:32]} 14. c4 {[%clk 0:02:34]}  Nbd7 {[%clk 0:02:22]} 15. a5 {[%clk 0:02:28]}  Qc7 {[%clk 0:02:21]} 16. b3 {[%clk 0:02:28]}  Bf8 {[%clk 0:02:10]} 17. Bb2 {[%clk 0:02:26]}  Rxe1+ {[%clk 0:02:10]} 18. Nxe1 {[%clk 0:02:17]}  b4 {[%clk 0:02:09]} 19. Nc2 {[%clk 0:02:09]}  Re8 {[%clk 0:02:07]} 20. Ne3 {[%clk 0:02:09]}  g6 {[%clk 0:02:07]} 21. Qc2 {[%clk 0:01:54]}  Bg7 {[%clk 0:02:07]} 22. h4 {[%clk 0:01:37]}  Bc8 {[%clk 0:02:06]} 23. Nf3 {[%clk 0:01:34]}  Ne4 {[%clk 0:01:47]} 24. Bxg7 {[%clk 0:01:34]}  Kxg7 {[%clk 0:01:48]} 25. Ng5 {[%clk 0:01:30]}  Nc3 {[%clk 0:01:40]} 26. h5 {[%clk 0:01:08]}  Nf6 {[%clk 0:01:37]} 27. hxg6 {[%clk 0:01:01]}  hxg6 {[%clk 0:01:38]} 28. Bf3 {[%clk 0:00:59]}  Qd8 {[%clk 0:01:17]} 29. Kg2 {[%clk 0:00:53]}  Rh8 {[%clk 0:01:06]} 30. Qd3 {[%clk 0:00:37]}  Nd7 {[%clk 0:00:51]} 31. Ne4 {[%clk 0:00:32]}  Ne5 {[%clk 0:00:51]} 32. Qc2 {[%clk 0:00:27]}  Bh3+ {[%clk 0:00:51]} 0-1

[Event "January 9 Early 2024"]
[Site "https://www.chess.com"]
[Date "2024.01.11"]
[Round "6"]
[White "Mizzi, Jack"]
[Black "Matinian, Nikita"]
[Result "0-1"]
[Board "65"]
[TimeControl "180+1"]
[WhiteFideId "5602521"]
[BlackFideId "24129100"]
[WhiteElo "2496"]
[BlackElo "2723"]
[WhiteTeam "MLT"]
[BlackTeam "FID"]
[WhiteClock "0:00:02"]
[BlackClock "0:01:40"]

1. d4 {[%clk 0:03:00]}  Nf6 {[%clk 0:02:58]} 2. c4 {[%clk 0:03:00]}  g6 {[%clk 0:02:58]} 3. g3 {[%clk 0:03:01]}  Bg7 {[%clk 0:02:58]} 4. Bg2 {[%clk 0:03:01]}  O-O {[%clk 0:02:59]} 5. Nf3 {[%clk 0:03:01]}  d6 {[%clk 0:03:00]} 6. O-O {[%clk 0:03:01]}  c6 {[%clk 0:03:00]} 7. Nc3 {[%clk 0:03:01]}  Bf5 {[%clk 0:03:00]} 8. Ne1 {[%clk 0:02:59]}  e5 {[%clk 0:02:57]} 9. d5 {[%clk 0:02:50]}  cxd5 {[%clk 0:02:57]} 10. cxd5 {[%clk 0:02:50]}  a5 {[%clk 0:02:58]} 11. e4 {[%clk 0:02:50]}  Bd7 {[%clk 0:02:59]} 12. a4 {[%clk 0:02:49]}  Na6 {[%clk 0:02:59]} 13. Nd3 {[%clk 0:02:43]}  Rc8 {[%clk 0:02:58]} 14. f3 {[%clk 0:02:29]}  Nh5 {[%clk 0:02:55]} 15. Be3 {[%clk 0:02:27]}  f5 {[%clk 0:02:55]} 16. Nb5 {[%clk 0:02:13]}  f4 {[%clk 0:02:52]} 17. Bf2 {[%clk 0:02:06]}  fxg3 {[%clk 0:02:52]} 18. hxg3 {[%clk 0:02:06]}  Qe7 {[%clk 0:02:49]} 19. Qd2 {[%clk 0:02:00]}  b6 {[%clk 0:02:42]} 20. Rac1 {[%clk 0:01:52]}  Nc5 {[%clk 0:02:42]} 21. Nxc5 {[%clk 0:01:47]}  bxc5 {[%clk 0:02:43]} 22. Kh2 {[%clk 0:01:02]}  g5 {[%clk 0:02:25]} 23. Be3 {[%clk 0:00:56]}  Nf4 {[%clk 0:02:12]} 24. gxf4 {[%clk 0:00:42]}  exf4 {[%clk 0:02:13]} 25. Bf2 {[%clk 0:00:33]}  h5 {[%clk 0:02:13]} 26. Rh1 {[%clk 0:00:07]}  g4 {[%clk 0:02:13]} 27. Kg1 {[%clk 0:00:05]}  g3 {[%clk 0:02:10]} 28. Be1 {[%clk 0:00:04]}  h4 {[%clk 0:02:10]} 29. Bh3 {[%clk 0:00:03]}  Bxh3 {[%clk 0:01:56]} 30. Rxh3 {[%clk 0:00:04]}  c4 {[%clk 0:01:52]} 31. Kg2 {[%clk 0:00:02]}  Rc5 {[%clk 0:01:48]} 32. Qxa5 {[%clk 0:00:02]}  Rxd5 {[%clk 0:01:47]} 33. exd5 {[%clk 0:00:01]}  Qe2+ {[%clk 0:01:47]} 34. Kg1 {[%clk 0:00:01]}  Qe3+ {[%clk 0:01:44]} 35. Kh1 {[%clk 0:00:01]}  Qxf3+ {[%clk 0:01:43]} 36. Kg1 {[%clk 0:00:02]}  Qe3+ {[%clk 0:01:43]} 37. Kh1 {[%clk 0:00:02]}  Qxc1 {[%clk 0:01:42]} 38. Qd2 {[%clk 0:00:02]}  Qxd2 {[%clk 0:01:39]} 39. Bxd2 {[%clk 0:00:02]}  f3 {[%clk 0:01:40]} 40. Be3 {[%clk 0:00:02]}  f2 {[%clk 0:01:40]} 0-1

[Event "January 9 Early 2024"]
[Site "https://www.chess.com"]
[Date "2024.01.11"]
[Round "6"]
[White "Demin, Vladimir"]
[Black "Hungaski, Robert"]
[Result "0-1"]
[Board "66"]
[TimeControl "180+1"]
[WhiteFideId "4167457"]
[BlackFideId "2021030"]
[WhiteElo "2582"]
[BlackElo "2465"]
[WhiteTeam "RUS"]
[BlackTeam "USA"]
[WhiteClock "0:01:15"]
[BlackClock "0:00:17"]

1. d4 {[%clk 0:03:00]}  Nf6 {[%clk 0:02:59]} 2. Nc3 {[%clk 0:03:00]}  d5 {[%clk 0:02:57]} 3. Bf4 {[%clk 0:03:00]}  e6 {[%clk 0:02:57]} 4. Nb5 {[%clk 0:02:59]}  Na6 {[%clk 0:02:56]} 5. e3 {[%clk 0:02:59]}  Be7 {[%clk 0:02:57]} 6. g4 {[%clk 0:02:59]}  O-O {[%clk 0:02:51]} 7. g5 {[%clk 0:02:59]}  Ne4 {[%clk 0:02:51]} 8. h4 {[%clk 0:02:55]}  c6 {[%clk 0:02:51]} 9. Nc3 {[%clk 0:02:54]}  Bb4 {[%clk 0:02:45]} 10. Ne2 {[%clk 0:02:53]}  e5 {[%clk 0:02:31]} 11. Bxe5 {[%clk 0:02:44]}  Bg4 {[%clk 0:02:29]} 12. Qd3 {[%clk 0:02:40]}  Qa5 {[%clk 0:02:05]} 13. a3 {[%clk 0:02:22]}  Bxe2 {[%clk 0:01:17]} 14. Bxe2 {[%clk 0:02:20]}  Nxc3 {[%clk 0:01:13]} 15. Rc1 {[%clk 0:01:52]}  Nxe2+ {[%clk 0:01:10]} 16. axb4 {[%clk 0:01:52]}  Nxc1 {[%clk 0:01:10]} 17. bxa5 {[%clk 0:01:51]}  Nxd3+ {[%clk 0:01:10]} 18. cxd3 {[%clk 0:01:52]}  f6 {[%clk 0:01:07]} 19. gxf6 {[%clk 0:01:51]}  gxf6 {[%clk 0:01:08]} 20. Bd6 {[%clk 0:01:50]}  Rfe8 {[%clk 0:01:06]} 21. h5 {[%clk 0:01:49]}  Kf7 {[%clk 0:01:05]} 22. Ke2 {[%clk 0:01:45]}  Re6 {[%clk 0:01:02]} 23. Bf4 {[%clk 0:01:43]}  Rg8 {[%clk 0:01:02]} 24. h6 {[%clk 0:01:39]}  Ke7 {[%clk 0:00:54]} 25. Rb1 {[%clk 0:01:35]}  Kd7 {[%clk 0:00:54]} 26. b4 {[%clk 0:01:35]}  Nc7 {[%clk 0:00:54]} 27. Kf3 {[%clk 0:01:31]}  Rg6 {[%clk 0:00:50]} 28. Ra1 {[%clk 0:01:28]}  Ne8 {[%clk 0:00:47]} 29. a6 {[%clk 0:01:28]}  b6 {[%clk 0:00:27]} 30. Bb8 {[%clk 0:01:27]}  Rg8 {[%clk 0:00:17]} 31. Bxa7 {[%clk 0:01:25]}  Kc7 {[%clk 0:00:17]} 32. b5 {[%clk 0:01:23]}  Nd6 {[%clk 0:00:18]} 33. bxc6 {[%clk 0:01:19]}  Nb5 {[%clk 0:00:18]} 34. Kf4 {[%clk 0:01:14]}  Nxa7 {[%clk 0:00:17]} 35. Kf5 {[%clk 0:01:15]}  Rxc6 {[%clk 0:00:17]} 0-1